[Event "44th Chess Olympiad Women 2022"]
[Site "Chennai"]
[Date "2022.08.02"]
[Round "5.65"]
[White "Almusawi, Maram"]
[Black "Ollet, Myra"]
[Result "0-1"]
[ECO "A46"]
[WhiteElo "1349"]
[BlackElo "1480"]
[Annotator "NA RC COMBH"]
[PlyCount "86"]
[EventDate "2022.07.29"]
[EventType "team-tourn"]
[EventCountry "IND"]
[SourceTitle "playchess.com"]
[Source "ChessBase"]
[SourceQuality "1"]
[WhiteTeam "Brunei"]
[BlackTeam "GUM"]
[WhiteTeamCountry "BRN"]
[TimeControl "40/5400+30:1800+30"]

1. d4 {[%emt 0:00:12]} Nf6 {[%emt 0:00:23]} 2. Nf3 {[%emt 0:01:02]} d6 {[%emt 0:00:26]} 3. e3 {[%emt 0:01:19]} c6 {[%emt 0:00:21]} 4. Bd3 {[%emt 0:00:35]} Nbd7 {[%emt 0:00:24]} 5. Nbd2 {[%emt 0:01:29]} Qc7 {[%emt 0:00:21]} 6. c3 {[%emt 0:02:32]} b6 {[%emt 0:00:18]} 7. Qe2 {[%emt 0:01:07]} b5 {[%emt 0:02:55]} 8. a4 {[%emt 0:01:25]} bxa4 {[%emt 0:01:35]} 9. Rxa4 {[%emt 0:01:00]} Nb6 {[%emt 0:00:46]} 10. Ra1 {[%emt 0:00:26]} e6 {[%emt 0:00:18]} 11. Ba6 {[%emt 0:01:33]} Be7 {[%emt 0:00:26]} 12. O-O {[%emt 0:02:52]} h6 {[%emt 0:00:20]} 13. b4 {[%emt 0:00:38]} Bd7 {[%emt 0:00:52]} 14. Bb2 {[%emt 0:02:53]} O-O {[%emt 0:02:00]} 15. Rfe1 {[%emt 0:02:40]} e5 {[%emt 0:00:57]} 16. dxe5 {[%emt 0:01:03]} dxe5 {[%emt 0:00:15]} 17. e4 {[%emt 0:01:31]} Bg4 {[%emt 0:00:38]} 18. Qe3 {[%emt 0:01:30]} c5 {[%emt 0:02:34]} 19. Ba3 {[%emt 0:02:08]} cxb4 {[%emt 0:03:05]} 20. Bxb4 {[%emt 0:03:29]} Bxb4 {[%emt 0:01:29]} 21. cxb4 {[%emt 0:00:09]} Rad8 {[%emt 0:00:37]} 22. h3 {[%emt 0:03:45]} Bxf3 {[%emt 0:00:18]} 23. Nxf3 {[%emt 0:00:13]} Qe7 {[%emt 0:01:48]} 24. Rac1 {[%emt 0:03:27]} Nfd7 {[%emt 0:02:22]} 25. Rc7 {[%emt 0:04:38]} Qxb4 {[%emt 0:03:18]} 26. Rxa7 {[%emt 0:05:18]} Ra8 {[%emt 0:05:03]} 27. Rxa8 {[%emt 0:01:29]} Rxa8 {[%emt 0:00:09]} 28. Bd3 {[%emt 0:00:58]} Ra3 {[%emt 0:00:20]} 29. Qe2 {[%emt 0:01:25]} f6 {[%emt 0:01:17]} 30. Rb1 {[%emt 0:02:32]} Qc3 {[%emt 0:00:45]} 31. Bb5 {[%emt 0:01:13]} Nc5 {[%emt 0:04:39]} 32. Bc6 {[%emt 0:02:20]} Ra1 {[%emt 0:02:55]} 33. Rxa1 {[%emt 0:01:30]} Qxa1+ {[%emt 0:00:07]} 34. Kh2 {[%emt 0:00:15]} Qc1 {[%emt 0:00:55]} 35. Nh4 {[%emt 0:02:12]} Kh7 {[%emt 0:05:05]} 36. g3 {[%emt 0:02:32]} Ne6 {[%emt 0:00:30]} 37. Bd5 {[%emt 0:01:36]} Nd4 {[%emt 0:04:51]} 38. Qh5 {[%emt 0:00:42]} Qg5 {[%emt 0:01:02]} 39. Qf7 {[%emt 0:00:58]} Nxd5 {[%emt 0:00:20]} 40. exd5 {[%emt 0:01:22]} Nf5 {[%emt 0:00:36]} 41. Ng2 {[%emt 0:31:39]} Qd2 {[%emt 0:30:33]} 42. Qe6 {[%emt 0:00:44]} Qxf2 {[%emt 0:00:22]} 43. g4 {[%emt 0:04:44]} Ne3 {[%emt 0:00:22]} 0-1

[Event "44th Chess Olympiad Women 2022"]
[Site "Chennai"]
[Date "2022.08.02"]
[Round "5.66"]
[White "Msukwa, Tupokiwe"]
[Black "Callender, Jessica"]
[Result "0-1"]
[ECO "E90"]
[WhiteElo "1369"]
[BlackElo "1295"]
[Annotator "NA RC COMBH"]
[PlyCount "55"]
[EventDate "2022.07.29"]
[EventType "team-tourn"]
[EventCountry "IND"]
[SourceTitle "playchess.com"]
[Source "ChessBase"]
[SourceQuality "1"]
[WhiteTeam "MAW"]
[BlackTeam "Guyana"]
[BlackTeamCountry "GUY"]
[TimeControl "40/5400+30:1800+30"]

1. d4 {[%emt 0:00:03]} Nf6 {[%emt 0:00:08]} 2. c4 {[%emt 0:00:05]} d6 {[%emt 0:00:09]} 3. Nc3 {[%emt 0:00:08]} g6 {[%emt 0:00:17]} 4. e4 {[%emt 0:00:38]} Bg7 {[%emt 0:01:16]} 5. h3 {[%emt 0:00:10]} O-O {[%emt 0:00:19]} 6. Nf3 {[%emt 0:00:14]} Nbd7 {[%emt 0:02:08]} 7. Bd3 {[%emt 0:00:47]} e5 {[%emt 0:01:27]} 8. d5 {[%emt 0:00:13]} a5 {[%emt 0:04:15]} 9. Bg5 {[%emt 0:02:46]} h6 {[%emt 0:00:26]} 10. Be3 {[%emt 0:00:43]} Kh7 {[%emt 0:00:16]} 11. O-O {[%emt 0:01:23]} Nh5 {[%emt 0:05:03]} 12. Ne2 {[%emt 0:12:31]} f5 {[%emt 0:00:00]} 13. exf5 {[%emt 0:01:49]} gxf5 {[%emt 0:00:00]} 14. Bc2 {[%emt 0:05:24]} e4 {[%emt 0:02:48]} 15. Nfd4 {[%emt 0:03:32]} Ne5 {[%emt 0:02:11]} 16. Nc3 {[%emt 0:08:46]} Qh4 {[%emt 0:13:30]} 17. b3 {[%emt 0:24:45]} f4 {[%emt 0:00:18]} 18. Bxe4+ {[%emt 0:06:57]} Kh8 {[%emt 0:01:34]} 19. Bc1 {[%emt 0:04:04]} Bxh3 {[%emt 0:11:26]} 20. Nf3 {[%emt 0:08:39]} Nxf3+ {[%emt 0:01:48]} 21. Qxf3 {[%emt 0:01:34]} Bg4 {[%emt 0:02:39]} 22. Qd3 {[%emt 0:02:06]} Be5 {[%emt 0:10:45]} 23. f3 {[%emt 0:07:31]} Ng3 {[%emt 0:03:17]} 24. Re1 {[%emt 0:03:26]} Bf5 {[%emt 0:10:18]} 25. Bxf5 {[%emt 0:03:03]} Nxf5 {[%emt 0:00:45]} 26. Bb2 {[%emt 0:00:14]} Bd4+ {[%emt 0:02:21]} 27. Qxd4+ {[%emt 0:01:27]} Nxd4 {[%emt 0:00:07]} 28. Bc1 {[%emt 0:00:47]} 0-1

[Event "44th Chess Olympiad Women 2022"]
[Site "Chennai"]
[Date "2022.08.02"]
[Round "5.66"]
[White "Mpinganjira, Ellen"]
[Black "Lam, Pooja"]
[Result "1-0"]
[ECO "B13"]
[WhiteElo "1334"]
[BlackElo "1163"]
[Annotator "NA RC COMBH"]
[PlyCount "73"]
[EventDate "2022.07.29"]
[EventType "team-tourn"]
[EventCountry "IND"]
[SourceTitle "playchess.com"]
[Source "ChessBase"]
[SourceQuality "1"]
[WhiteTeam "MAW"]
[BlackTeam "Guyana"]
[BlackTeamCountry "GUY"]
[TimeControl "40/5400+30:1800+30"]

1. e4 {[%emt 0:00:07]} c6 {[%emt 0:00:05]} 2. Nf3 {[%emt 0:00:55]} d5 {[%emt 0:00:16]} 3. exd5 {[%emt 0:01:39]} cxd5 {[%emt 0:00:09]} 4. d4 {[%emt 0:00:16]} Nc6 {[%emt 0:00:37]} 5. Bb5 {[%emt 0:00:59]} Bd7 {[%emt 0:02:55]} 6. c3 {[%emt 0:03:11]} Qc7 {[%emt 0:01:59]} 7. O-O {[%emt 0:00:55]} Nf6 {[%emt 0:00:09]} 8. Bg5 {[%emt 0:04:04]} Ne4 {[%emt 0:03:27]} 9. Bh4 {[%emt 0:02:00]} e6 {[%emt 0:01:26]} 10. Nbd2 {[%emt 0:02:15]} Bd6 {[%emt 0:02:49]} 11. Re1 {[%emt 0:01:53]} Nxd2 {[%emt 0:03:23]} 12. Qxd2 {[%emt 0:00:08]} O-O {[%emt 0:00:13]} 13. Bd3 {[%emt 0:01:04]} e5 {[%emt 0:01:23]} 14. dxe5 {[%emt 0:01:48]} Nxe5 {[%emt 0:00:09]} 15. Nxe5 {[%emt 0:02:29]} Bxe5 {[%emt 0:00:13]} 16. h3 {[%emt 0:01:46]} Bc6 {[%emt 0:07:35]} 17. Qg5 {[%emt 0:03:44]} f5 {[%emt 0:10:09]} 18. Bxf5 {[%emt 0:05:17]} Bf6 {[%emt 0:00:12]} 19. Be6+ {[%emt 0:00:35]} Kh8 {[%emt 0:00:14]} 20. Qg3 {[%emt 0:07:49]} Qxg3 {[%emt 0:04:42]} 21. Bxg3 {[%emt 0:00:06]} d4 {[%emt 0:00:16]} 22. cxd4 {[%emt 0:03:02]} Bxd4 {[%emt 0:00:13]} 23. Rab1 {[%emt 0:04:36]} Rf6 {[%emt 0:04:20]} 24. Re2 {[%emt 0:11:54]} Re8 {[%emt 0:06:11]} 25. Bg4 {[%emt 0:04:11]} Rxe2 {[%emt 0:04:34]} 26. Bxe2 {[%emt 0:00:10]} h6 {[%emt 0:02:17]} 27. b3 {[%emt 0:01:47]} Be4 {[%emt 0:02:01]} 28. Rd1 {[%emt 0:01:40]} Bc3 {[%emt 0:01:43]} 29. Bd3 {[%emt 0:03:50]} Bc6 {[%emt 0:01:26]} 30. Bc4 {[%emt 0:04:02]} b5 {[%emt 0:03:54]} 31. Bd5 {[%emt 0:04:21]} Bd7 {[%emt 0:00:44]} 32. Be4 {[%emt 0:02:15]} Rf7 {[%emt 0:01:43]} 33. Bg6 {[%emt 0:00:43]} Re7 {[%emt 0:00:28]} 34. f3 {[%emt 0:04:05]} Ba5 {[%emt 0:02:13]} 35. Bh4 {[%emt 0:02:36]} Bb6+ {[%emt 0:02:28]} 36. Kf1 {[%emt 0:00:44]} Re6 {[%emt 0:00:38]} 37. Bf5 {[%emt 0:00:38]} 1-0

[Event "44th Chess Olympiad Women 2022"]
[Site "Chennai"]
[Date "2022.08.02"]
[Round "5.66"]
[White "Johnson, Nellisha"]
[Black "Jambo, Linda"]
[Result "1/2-1/2"]
[ECO "C50"]
[WhiteElo "1093"]
[BlackElo "1426"]
[Annotator "NA RC COMBH"]
[PlyCount "87"]
[EventDate "2022.07.29"]
[EventType "team-tourn"]
[EventCountry "IND"]
[SourceTitle "playchess.com"]
[Source "ChessBase"]
[SourceQuality "1"]
[WhiteTeam "Guyana"]
[BlackTeam "MAW"]
[WhiteTeamCountry "GUY"]
[TimeControl "40/5400+30:1800+30"]

1. e4 {[%emt 0:00:06]} e5 {[%emt 0:00:15]} 2. Nf3 {[%emt 0:00:08]} Nc6 {[%emt 0:00:08]} 3. Bc4 {[%emt 0:00:24]} Bc5 {[%emt 0:03:55]} 4. O-O {[%emt 0:00:25]} Nf6 {[%emt 0:00:08]} 5. d3 {[%emt 0:00:29]} h6 {[%emt 0:01:02]} 6. Be3 {[%emt 0:01:12]} Be7 {[%emt 0:01:00]} 7. Nc3 {[%emt 0:01:25]} d6 {[%emt 0:01:24]} 8. h3 {[%emt 0:00:39]} O-O {[%emt 0:00:07]} 9. Nd5 {[%emt 0:03:56]} Nxd5 {[%emt 0:07:19]} 10. Bxd5 {[%emt 0:00:44]} Nb4 {[%emt 0:03:38]} 11. Bb3 {[%emt 0:01:24]} a6 {[%emt 0:06:08]} 12. c3 {[%emt 0:01:33]} Nc6 {[%emt 0:00:24]} 13. Nh2 {[%emt 0:04:13]} Bg5 {[%emt 0:02:45]} 14. Qe2 {[%emt 0:03:46]} Bxe3 {[%emt 0:01:23]} 15. fxe3 {[%emt 0:00:45]} Qg5 {[%emt 0:09:48]} 16. Rf3 {[%emt 0:03:24]} Be6 {[%emt 0:10:39]} 17. Raf1 {[%emt 0:04:13]} Bxb3 {[%emt 0:01:03]} 18. axb3 {[%emt 0:00:28]} Rae8 {[%emt 0:11:51]} 19. Rf5 {[%emt 0:05:28]} Qg6 {[%emt 0:03:00]} 20. Qg4 {[%emt 0:10:52]} Qxg4 {[%emt 0:00:44]} 21. Nxg4 {[%emt 0:00:35]} b5 {[%emt 0:02:33]} 22. b4 {[%emt 0:03:04]} Ra8 {[%emt 0:01:52]} 23. Ra1 {[%emt 0:02:16]} a5 {[%emt 0:02:10]} 24. bxa5 {[%emt 0:03:28]} Rxa5 {[%emt 0:00:25]} 25. Rxa5 {[%emt 0:00:18]} Nxa5 {[%emt 0:00:01]} 26. d4 {[%emt 0:02:54]} f6 {[%emt 0:00:47]} 27. Rf1 {[%emt 0:04:05]} Nb3 {[%emt 0:02:25]} 28. Rd1 {[%emt 0:03:46]} Ra8 {[%emt 0:00:29]} 29. Nf2 {[%emt 0:00:48]} Ra1 {[%emt 0:00:19]} 30. Rxa1 {[%emt 0:00:18]} Nxa1 {[%emt 0:00:02]} 31. Kf1 {[%emt 0:01:10]} Kf7 {[%emt 0:01:47]} 32. d5 {[%emt 0:01:45]} Nb3 {[%emt 0:00:46]} 33. Ke2 {[%emt 0:02:18]} Ke7 {[%emt 0:02:27]} 34. Nd3 {[%emt 0:01:51]} Nc5 {[%emt 0:01:18]} 35. Nxc5 {[%emt 0:01:41]} dxc5 {[%emt 0:00:08]} 36. b3 {[%emt 0:01:03]} Kd6 {[%emt 0:00:14]} 37. c4 {[%emt 0:01:39]} b4 {[%emt 0:03:31]} 38. Kf3 {[%emt 0:00:36]} Ke7 {[%emt 0:03:50]} 39. h4 {[%emt 0:02:39]} h5 {[%emt 0:06:22]} 40. g4 {[%emt 0:05:04]} g6 {[%emt 0:08:40]} 41. g5 {[%emt 0:33:40]} fxg5 {[%emt 0:30:57]} 42. hxg5 {[%emt 0:00:24]} Kd6 {[%emt 0:01:50]} 43. Kg3 {[%emt 0:00:33]} Ke7 {[%emt 0:01:38]} 44. Kh4 {[%emt 0:00:36]} 1/2-1/2

[Event "44th Chess Olympiad Women 2022"]
[Site "Chennai"]
[Date "2022.08.02"]
[Round "5.67"]
[White "Ibtihal Mohammed"]
[Black "Magne Kouokam Sylviane"]
[Result "0-1"]
[ECO "D02"]
[WhiteElo "1445"]
[BlackElo "1317"]
[Annotator "NA RC COMBH"]
[PlyCount "146"]
[EventDate "2022.07.29"]
[EventType "team-tourn"]
[EventCountry "IND"]
[SourceTitle "playchess.com"]
[Source "ChessBase"]
[SourceQuality "1"]
[WhiteTeam "Sudan"]
[BlackTeam "CMR"]
[WhiteTeamCountry "SUD"]
[TimeControl "40/5400+30:1800+30"]

1. Nf3 {[%emt 0:00:02]} d5 {[%emt 0:00:08]} 2. d4 {[%emt 0:00:07]} Nf6 {[%emt 0:00:23]} 3. g3 {[%emt 0:00:22]} c5 {[%emt 0:00:18]} 4. c3 {[%emt 0:00:17]} Nc6 {[%emt 0:01:08]} 5. Bg2 {[%emt 0:02:51]} Bf5 {[%emt 0:00:33]} 6. O-O {[%emt 0:01:08]} e6 {[%emt 0:00:18]} 7. Qb3 {[%emt 0:05:46]} Qd7 {[%emt 0:03:34]} 8. Bf4 {[%emt 0:09:26]} Be7 {[%emt 0:00:24]} 9. h3 {[%emt 0:04:31]} Nh5 {[%emt 0:06:26]} 10. Bg5 {[%emt 0:01:15]} Bg6 {[%emt 0:01:46]} 11. Bxe7 {[%emt 0:00:22]} Qxe7 {[%emt 0:02:57]} 12. dxc5 {[%emt 0:02:49]} O-O {[%emt 0:00:49]} 13. Nbd2 {[%emt 0:03:00]} Rab8 {[%emt 0:00:28]} 14. Kh2 {[%emt 0:03:54]} Qxc5 {[%emt 0:00:35]} 15. Nh4 {[%emt 0:00:28]} Ne5 {[%emt 0:10:09]} 16. Nxg6 {[%emt 0:00:29]} fxg6 {[%emt 0:08:41]} 17. Nf3 {[%emt 0:06:14]} Nc4 {[%emt 0:01:55]} 18. Rad1 {[%emt 0:11:11]} Nf6 {[%emt 0:02:04]} 19. Nd4 {[%emt 0:04:46]} Rfe8 {[%emt 0:01:04]} 20. Qc2 {[%emt 0:01:21]} e5 {[%emt 0:01:20]} 21. Nb3 {[%emt 0:00:35]} Qc6 {[%emt 0:02:37]} 22. Nd2 {[%emt 0:04:18]} Nd6 {[%emt 0:02:14]} 23. Nb3 {[%emt 0:03:56]} e4 {[%emt 0:02:08]} 24. Nd4 {[%emt 0:00:17]} Qa6 {[%emt 0:00:13]} 25. a3 {[%emt 0:06:38]} Rbc8 {[%emt 0:01:01]} 26. e3 {[%emt 0:00:20]} Qb6 {[%emt 0:01:16]} 27. Qb3 {[%emt 0:01:53]} Qc7 {[%emt 0:00:49]} 28. Ne2 {[%emt 0:00:30]} Nc4 {[%emt 0:02:36]} 29. Nf4 {[%emt 0:01:19]} Rcd8 {[%emt 0:01:04]} 30. Rd4 {[%emt 0:00:56]} Na5 {[%emt 0:01:06]} 31. Qb5 {[%emt 0:00:47]} a6 {[%emt 0:00:55]} 32. Qa4 {[%emt 0:00:00]} b5 {[%emt 0:00:25]} 33. Qc2 {[%emt 0:00:05]} g5 {[%emt 0:00:40]} 34. Ne2 {[%emt 0:00:37]} Nc6 {[%emt 0:01:04]} 35. Rd2 {[%emt 0:00:34]} Ne5 {[%emt 0:00:43]} 36. Nd4 {[%emt 0:00:29]} g4 {[%emt 0:01:21]} 37. Rh1 {[%emt 0:09:16]} Nf3+ {[%emt 0:02:33]} 38. Nxf3 {[%emt 0:00:08]} gxf3 {[%emt 0:00:12]} 39. Bf1 {[%emt 0:00:10]} Qe5 {[%emt 0:00:52]} 40. a4 {[%emt 0:01:55]} Rb8 {[%emt 0:01:13]} 41. axb5 {[%emt 0:30:26]} axb5 {[%emt 0:30:10]} 42. Qb3 {[%emt 0:02:23]} Re6 {[%emt 0:02:46]} 43. Qb4 {[%emt 0:01:03]} Nh5 {[%emt 0:01:07]} 44. Qd4 {[%emt 0:01:12]} Qxd4 {[%emt 0:02:31]} 45. Rxd4 {[%emt 0:03:44]} Re5 {[%emt 0:00:41]} 46. Rb4 {[%emt 0:00:18]} Re7 {[%emt 0:01:05]} 47. Rxb5 {[%emt 0:00:08]} Reb7 {[%emt 0:00:18]} 48. c4 {[%emt 0:00:00]} Nf6 {[%emt 0:00:00]} 49. b4 {[%emt 0:00:00]} Rxb5 {[%emt 0:00:00]} 50. cxb5 {[%emt 0:00:00]} Kf8 {[%emt 0:00:00]} 51. h4 {[%emt 0:00:00]} h5 {[%emt 0:00:00]} 52. Bh3 {[%emt 0:00:00]} Rxb5 {[%emt 0:00:00]} 53. Rb1 {[%emt 0:00:00]} Rb6 {[%emt 0:00:00]} 54. Bc8 {[%emt 0:00:00]} Ng4+ {[%emt 0:00:00]} 55. Kg1 {[%emt 0:00:00]} Ne5 {[%emt 0:00:00]} 56. b5 {[%emt 0:00:00]} Ke7 {[%emt 0:00:00]} 57. Kf1 {[%emt 0:00:00]} Nd3 {[%emt 0:00:00]} 58. Ba6 {[%emt 0:00:00]} Nc5 {[%emt 0:00:00]} 59. Ra1 {[%emt 0:00:00]} Kd6 {[%emt 0:00:00]} 60. Ke1 {[%emt 0:00:00]} Nd3+ {[%emt 0:00:16]} 61. Kf1 {[%emt 0:00:00]} Nb4 {[%emt 0:00:00]} 62. Ra4 {[%emt 0:01:36]} Nd3 {[%emt 0:00:00]} 63. Ra3 {[%emt 0:01:21]} Nb2 {[%emt 0:00:00]} 64. Rc3 {[%emt 0:02:55]} Nc4 {[%emt 0:00:00]} 65. Ke1 {[%emt 0:00:27]} Kc5 {[%emt 0:00:00]} 66. Rb3 {[%emt 0:01:24]} d4 {[%emt 0:00:00]} 67. exd4+ {[%emt 0:00:27]} Kxd4 {[%emt 0:00:00]} 68. Bc8 {[%emt 0:00:16]} Ne5 {[%emt 0:00:00]} 69. Kd2 {[%emt 0:01:18]} Nd3 {[%emt 0:00:00]} 70. Bd7 {[%emt 0:02:33]} Nxf2 {[%emt 0:00:00]} 71. Rb4+ {[%emt 0:00:54]} Ke5 {[%emt 0:00:00]} 72. Ke3 {[%emt 0:00:39]} Nd1+ {[%emt 0:00:00]} 73. Kd2 {[%emt 0:00:44]} Rd6+ {[%emt 0:00:00]} 0-1

[Event "44th Chess Olympiad Women 2022"]
[Site "Chennai"]
[Date "2022.08.02"]
[Round "5.67"]
[White "Tchouateu Tankeu Stephanie"]
[Black "Sara, Gadalla Karar"]
[Result "1-0"]
[ECO "E14"]
[WhiteElo "1280"]
[BlackElo "1433"]
[Annotator "NA RC COMBH"]
[PlyCount "113"]
[EventDate "2022.07.29"]
[EventType "team-tourn"]
[EventCountry "IND"]
[SourceTitle "playchess.com"]
[Source "ChessBase"]
[SourceQuality "1"]
[WhiteTeam "CMR"]
[BlackTeam "Sudan"]
[BlackTeamCountry "SUD"]
[TimeControl "40/5400+30:1800+30"]

1. d4 {[%emt 0:00:05]} Nf6 {[%emt 0:00:06]} 2. Nf3 {[%emt 0:00:22]} e6 {[%emt 0:00:56]} 3. c4 {[%emt 0:00:40]} b6 {[%emt 0:00:00]} 4. e3 {[%emt 0:01:03]} Bb7 {[%emt 0:00:00]} 5. Be2 {[%emt 0:00:12]} Bb4+ {[%emt 0:02:00]} 6. Nbd2 {[%emt 0:01:49]} O-O {[%emt 0:00:34]} 7. a3 {[%emt 0:00:17]} Be7 {[%emt 0:01:16]} 8. O-O {[%emt 0:00:50]} c5 {[%emt 0:02:25]} 9. Nb3 {[%emt 0:08:01]} cxd4 {[%emt 0:10:49]} 10. exd4 {[%emt 0:04:47]} Ba6 {[%emt 0:07:22]} 11. Qc2 {[%emt 0:04:00]} d5 {[%emt 0:05:29]} 12. cxd5 {[%emt 0:12:44]} Bxe2 {[%emt 0:00:22]} 13. Qxe2 {[%emt 0:00:13]} Nxd5 {[%emt 0:00:22]} 14. Bd2 {[%emt 0:04:09]} Nc6 {[%emt 0:01:30]} 15. Rac1 {[%emt 0:00:27]} Rc8 {[%emt 0:02:07]} 16. Ne5 {[%emt 0:05:35]} Qe8 {[%emt 0:11:41]} 17. Ng4 {[%emt 0:11:40]} f5 {[%emt 0:05:56]} 18. Qxe6+ {[%emt 0:03:17]} Kh8 {[%emt 0:03:17]} 19. Ne3 {[%emt 0:02:56]} Nf4 {[%emt 0:03:45]} 20. Qc4 {[%emt 0:01:42]} Qd7 {[%emt 0:05:58]} 21. Nc5 {[%emt 0:05:44]} Qxd4 {[%emt 0:02:22]} 22. Qxd4 {[%emt 0:00:43]} Nxd4 {[%emt 0:00:19]} 23. Nd7 {[%emt 0:00:46]} Nfe2+ {[%emt 0:01:26]} 24. Kh1 {[%emt 0:00:39]} Rxc1 {[%emt 0:00:09]} 25. Bxc1 {[%emt 0:00:36]} Nxc1 {[%emt 0:05:12]} 26. Nxf8 {[%emt 0:01:52]} Nde2 {[%emt 0:00:26]} 27. Ne6 {[%emt 0:03:21]} g6 {[%emt 0:01:29]} 28. g3 {[%emt 0:01:48]} Kg8 {[%emt 0:00:18]} 29. Rd1 {[%emt 0:03:15]} Kf7 {[%emt 0:02:11]} 30. Nc7 {[%emt 0:00:10]} Kg8 {[%emt 0:04:40]} 31. Ned5 {[%emt 0:02:31]} Bc5 {[%emt 0:02:59]} 32. Nf6+ {[%emt 0:02:21]} Kf7 {[%emt 0:04:06]} 33. Nxh7 {[%emt 0:03:43]} Bd4 {[%emt 0:01:40]} 34. Kg2 {[%emt 0:01:34]} Ke7 {[%emt 0:02:04]} 35. Nb5 {[%emt 0:00:40]} Bxb2 {[%emt 0:00:22]} 36. a4 {[%emt 0:01:45]} Be5 {[%emt 0:03:56]} 37. Nxa7 {[%emt 0:00:30]} Bd4 {[%emt 0:01:19]} 38. Nc6+ {[%emt 0:00:54]} Ke6 {[%emt 0:02:50]} 39. Nxd4+ {[%emt 0:00:15]} Nxd4 {[%emt 0:00:07]} 40. Rxd4 {[%emt 0:00:11]} Ke7 {[%emt 0:02:43]} 41. Rb4 {[%emt 0:30:27]} Nd3 {[%emt 0:00:57]} 42. Rxb6 {[%emt 0:00:13]} Nc5 {[%emt 0:30:18]} 43. Rb4 {[%emt 0:00:51]} Kd6 {[%emt 0:00:50]} 44. h4 {[%emt 0:03:16]} Kd7 {[%emt 0:02:16]} 45. Nf8+ {[%emt 0:00:28]} Ke8 {[%emt 0:00:52]} 46. Nxg6 {[%emt 0:00:14]} Kf7 {[%emt 0:00:30]} 47. Nf4 {[%emt 0:01:35]} Kg7 {[%emt 0:00:00]} 48. a5 {[%emt 0:00:00]} Kf7 {[%emt 0:00:00]} 49. Rb5 {[%emt 0:00:00]} Na6 {[%emt 0:00:00]} 50. Rb6 {[%emt 0:00:00]} Nc5 {[%emt 0:00:00]} 51. a6 {[%emt 0:00:00]} Nxa6 {[%emt 0:00:00]} 52. Rxa6 {[%emt 0:00:00]} Kg7 {[%emt 0:00:00]} 53. h5 {[%emt 0:00:00]} Kh7 {[%emt 0:00:00]} 54. Kh3 {[%emt 0:00:00]} Kg7 {[%emt 0:00:00]} 55. Kh4 {[%emt 0:00:00]} Kh7 {[%emt 0:00:00]} 56. Kg5 {[%emt 0:00:00]} Kg7 {[%emt 0:00:00]} 57. Ra7+ {[%emt 0:00:00]} 1-0

[Event "44th Chess Olympiad Women 2022"]
[Site "Chennai"]
[Date "2022.08.02"]
[Round "5.69"]
[White "Markidou, Christianna"]
[Black "Abigail Karyah"]
[Result "1-0"]
[ECO "C41"]
[WhiteElo "1701"]
[BlackElo "1455"]
[Annotator "NA RC COMBH"]
[PlyCount "70"]
[EventDate "2022.07.29"]
[EventType "team-tourn"]
[EventCountry "IND"]
[SourceTitle "playchess.com"]
[Source "ChessBase"]
[SourceQuality "1"]
[WhiteTeam "Cyprus"]
[BlackTeam "Liberia"]
[WhiteTeamCountry "CYP"]
[BlackTeamCountry "LBR"]
[TimeControl "40/5400+30:1800+30"]

1. e4 {[%emt 0:00:05]} e5 {[%emt 0:00:06]} 2. Nf3 {[%emt 0:00:05]} d6 {[%emt 0:00:08]} 3. d4 {[%emt 0:01:19]} exd4 {[%emt 0:00:43]} 4. Nxd4 {[%emt 0:00:13]} Nf6 {[%emt 0:00:10]} 5. Nc3 {[%emt 0:01:12]} Be7 {[%emt 0:00:19]} 6. Bd3 {[%emt 0:00:49]} O-O {[%emt 0:00:47]} 7. O-O {[%emt 0:00:31]} Bd7 {[%emt 0:01:39]} 8. b3 {[%emt 0:04:46]} Nc6 {[%emt 0:00:00]} 9. Nxc6 {[%emt 0:00:38]} Bxc6 {[%emt 0:00:00]} 10. Bb2 {[%emt 0:00:08]} h6 {[%emt 0:02:04]} 11. f4 {[%emt 0:10:33]} Qd7 {[%emt 0:02:21]} 12. h3 {[%emt 0:23:26]} Rad8 {[%emt 0:00:52]} 13. Qf3 {[%emt 0:05:31]} d5 {[%emt 0:16:23]} 14. e5 {[%emt 0:01:42]} d4 {[%emt 0:04:30]} 15. Ne4 {[%emt 0:01:03]} Nxe4 {[%emt 0:00:10]} 16. Bxe4 {[%emt 0:00:12]} Bxe4 {[%emt 0:01:08]} 17. Qxe4 {[%emt 0:00:07]} Bc5 {[%emt 0:01:02]} 18. Kh1 {[%emt 0:00:32]} Qd5 {[%emt 0:00:29]} 19. Qxd5 {[%emt 0:01:18]} Rxd5 {[%emt 0:00:14]} 20. Rf3 {[%emt 0:00:56]} b5 {[%emt 0:01:01]} 21. Rd1 {[%emt 0:02:58]} Rfd8 {[%emt 0:01:22]} 22. Rfd3 {[%emt 0:00:31]} c6 {[%emt 0:00:21]} 23. g4 {[%emt 0:01:32]} a5 {[%emt 0:01:22]} 24. Kg2 {[%emt 0:00:20]} Kf8 {[%emt 0:00:16]} 25. Kf3 {[%emt 0:00:15]} Bb6 {[%emt 0:01:30]} 26. Ke4 {[%emt 0:01:09]} c5 {[%emt 0:00:17]} 27. c4 {[%emt 0:05:16]} bxc4 {[%emt 0:00:53]} 28. bxc4 {[%emt 0:00:10]} R5d7 {[%emt 0:00:38]} 29. Rb3 {[%emt 0:01:47]} Ba7 {[%emt 0:16:45]} 30. Ba3 {[%emt 0:01:36]} d3 {[%emt 0:15:40]} 31. Rdxd3 {[%emt 0:02:21]} Rxd3 {[%emt 0:00:09]} 32. Rxd3 {[%emt 0:00:08]} Rxd3 {[%emt 0:00:06]} 33. Kxd3 {[%emt 0:00:06]} Ke7 {[%emt 0:02:51]} 34. Ke4 {[%emt 0:00:23]} Ke6 {[%emt 0:02:44]} 35. f5+ {[%emt 0:00:24]} Kd7 {[%emt 0:02:35]} 1-0

[Event "44th Chess Olympiad Women 2022"]
[Site "Chennai"]
[Date "2022.08.02"]
[Round "5.70"]
[White "Spinola, Divania"]
[Black "Yavo Tchetche, Marie"]
[Result "0-1"]
[ECO "C00"]
[WhiteElo "1425"]
[BlackElo "1313"]
[Annotator "NA RC COMBH"]
[PlyCount "56"]
[EventDate "2022.07.29"]
[EventType "team-tourn"]
[EventCountry "IND"]
[SourceTitle "playchess.com"]
[Source "ChessBase"]
[SourceQuality "1"]
[WhiteTeam "CPV"]
[BlackTeam "CIV"]
[TimeControl "40/5400+30:1800+30"]

1. e4 {[%emt 0:00:06]} e6 {[%emt 0:01:11]} 2. Nf3 {[%emt 0:00:37]} c5 {[%emt 0:03:21]} 3. d3 {[%emt 0:03:00]} d5 {[%emt 0:06:12]} 4. Nbd2 {[%emt 0:04:32]} Nf6 {[%emt 0:04:49]} 5. e5 {[%emt 0:01:31]} Nfd7 {[%emt 0:04:28]} 6. Be2 {[%emt 0:01:14]} Nc6 {[%emt 0:02:42]} 7. b3 {[%emt 0:03:08]} Ndxe5 {[%emt 0:03:53]} 8. Nxe5 {[%emt 0:17:21]} Nxe5 {[%emt 0:04:35]} 9. Bb2 {[%emt 0:01:56]} Qf6 {[%emt 0:05:17]} 10. Nf3 {[%emt 0:01:04]} Nxf3+ {[%emt 0:03:06]} 11. Bxf3 {[%emt 0:03:16]} Qxb2 {[%emt 0:01:16]} 12. O-O {[%emt 0:00:31]} Bd6 {[%emt 0:03:59]} 13. Re1 {[%emt 0:01:49]} O-O {[%emt 0:01:54]} 14. g3 {[%emt 0:02:10]} Rb8 {[%emt 0:02:48]} 15. Qd2 {[%emt 0:03:43]} Qf6 {[%emt 0:03:04]} 16. Bg2 {[%emt 0:06:31]} Be5 {[%emt 0:03:03]} 17. Rab1 {[%emt 0:04:13]} Bc3 {[%emt 0:00:51]} 18. Qe2 {[%emt 0:07:46]} Bxe1 {[%emt 0:02:02]} 19. Qxe1 {[%emt 0:01:22]} b6 {[%emt 0:02:19]} 20. a3 {[%emt 0:12:15]} Bb7 {[%emt 0:05:41]} 21. Bf1 {[%emt 0:08:03]} d4 {[%emt 0:04:06]} 22. Be2 {[%emt 0:01:46]} e5 {[%emt 0:02:37]} 23. Qd2 {[%emt 0:07:54]} e4 {[%emt 0:02:08]} 24. a4 {[%emt 0:02:15]} exd3 {[%emt 0:01:57]} 25. cxd3 {[%emt 0:00:09]} Rfe8 {[%emt 0:01:35]} 26. Bg4 {[%emt 0:01:25]} Re7 {[%emt 0:01:43]} 27. Bh3 {[%emt 0:01:45]} Qf3 {[%emt 0:00:41]} 28. Kf1 {[%emt 0:01:37]} Qh1# {[%emt 0:00:59]} 0-1